Cogmind - Beta 13 @@@ ROGUE MODE // 2024.04.27 @ 21:37:06 Player: TinyBoulder Result: Destroyed by Striker with Plasma Lance Performance ------------- Evolutions (7) 3500 Regions Visited (24) 4800 Robots Destroyed (54) 270 Value Destroyed (1647) 1647 Prototype IDs (36) 720 Alien Tech Used (2) 400 Bonus (4116) 4116 TOTAL SCORE: 15453 Bonus ------- Follower Combat Kills 516 Met Data Miner 300 Met Zhirov 300 Hacked Protovariant 500 Scanned by Researcher 500 Acquired SGEMP 2000 Cogmind --------- Core Integrity 0/1300 Matter 300/300 Energy 100/100 System Corruption 13% Temperature Cool (4) Movement Core (50) Location -3/Testing Parts ------- > --- POWER (3) -------- (None) > --- PROPULSION (7) --- (None) > --- UTILITY (8) ------ Improved Hacking Suite > --- WEAPON (3) ------- (None) > --- INVENTORY (5) ---- Light Particle Reactor Improved Plasma Cutter Force Lance SGEMP Prototype Peak State ------------ > --- POWER ------------ Enhanced Fission Core > --- PROPULSION ------- Compact Wheel Gyrokinetic Inverter Gyrokinetic Inverter Improved Linear Gravjet > --- UTILITY ---------- Advanced Signal Interpreter Advanced ECM Suite Improved Hacking Suite Experimental Hacking Suite Advanced Corruption Screen > --- WEAPON ----------- Centrium Greatsword Force Lance > --- INVENTORY -------- Light Particle Reactor Neutron Missile Launcher Improved Plasma Cutter SGEMP Prototype [Rating: 84] Favorites ----------- Power Light Nuclear Core Engine Light Ion Engine Power Core Light Nuclear Core Reactor Fusion Reactor Propulsion Improved Hover Unit Treads Light Treads Leg Improved Aluminum Leg Wheel Wheel Hover Unit Improved Hover Unit Utility Medium Storage Unit Device Experimental Sensor Array Storage Medium Storage Unit Processor Advanced Signal Interpreter Hackware Hacking Suite Protection Hardened Light Armor Plating Weapon Heavy Riot Gun Energy Gun Heavy Riot Gun Energy Cannon HERF Cannon Ballistic Gun Heavy Assault Rifle Launcher Improved Grenade Launcher Special Weapon Improved Plasma Cutter Impact Weapon Maul Slashing Weapon Centrium Greatsword Piercing Weapon Force Lance Build | -11 -10 -10 -9 -9 -8 -7 -7 -7 -7 -6 -6 -6 -6 -5 -5 -5 -5 -4 -4 -4 -4 -4 -3 -3 ------- Run | Yrd Mat Min Mat Min Mat Fac Low Low Dat Pro Fac Was Fac Fac Upp Upp Zhi Pro Fac Was Fac Ext Res Tes Slots Evolved 14 | . . . 2 . 2 2 . . . . 2 . . 2 . . . . 2 . . . 2 . Power 2 | . . . . . . . . . . . 1 . . . . . . . . . . . 1 . Propulsion 5 | . . . 1 . . 2 . . . . 1 . . . . . . . . . . . 1 . Utility 6 | . . . 1 . 1 . . . . . . . . 2 . . . . 2 . . . . . Weapon 1 | . . . . . 1 . . . . . . . . . . . . . . . . . . . Parts Attached 115 | 6 5 3 4 7 13 5 4 7 . 4 4 . 1 4 2 8 8 7 3 . 2 9 3 6 Power 14 | 1 . 1 1 2 1 . . . . 1 1 . . 1 . . 2 1 . . . 1 1 . Engine 5 | 1 . 1 1 1 . . . . . 1 . . . . . . . . . . . . . . Core 6 | . . . . 1 1 . . . . . 1 . . 1 . . 1 . . . . . 1 . Reactor 3 | . . . . . . . . . . . . . . . . . 1 1 . . . 1 . . Propulsion 25 | 2 2 . 2 2 4 2 . . . 1 1 . 1 1 . . 1 2 . . 1 1 . 2 Treads 2 | 2 . . . . . . . . . . . . . . . . . . . . . . . . Leg 6 | . 2 . 2 1 1 . . . . . . . . . . . . . . . . . . . Wheel 2 | . . . . 1 . . . . . . . . . . . . . . . . . . . 1 Hover 15 | . . . . . 3 2 . . . 1 1 . 1 1 . . 1 2 . . 1 1 . 1 Flight . | . . . . . . . . . . . . . . . . . . . . . . . . . Utility 38 | 1 1 2 1 1 3 3 2 1 . . 2 . . 2 . 4 5 2 2 . 1 2 2 1 Device 20 | . 1 1 . 1 1 2 1 1 . . . . . 1 . 2 4 1 1 . . 1 2 . Storage 3 | 1 . 1 . . 1 . . . . . . . . . . . . . . . . . . . Processor 4 | . . . . . . 1 . . . . 2 . . . . . . . . . . 1 . . Hackware 4 | . . . . . . . . . . . . . . 1 . . . . 1 . 1 . . 1 Protection 7 | . . . 1 . 1 . 1 . . . . . . . . 2 1 1 . . . . . . Artifact . | . . . . . . . . . . . . . . . . . . . . . . . . . Weapon 38 | 2 2 . . 2 5 . 2 6 . 2 . . . . 2 4 . 2 1 . . 5 . 3 Energy Gun 13 | 1 . . . . 2 . . 4 . 1 . . . . 1 2 . . . . . 1 . 1 Energy Cannon 2 | . . . . . . . . 1 . . . . . . . . . . 1 . . . . . Ballistic Gun 5 | 1 . . . 1 2 . 1 . . . . . . . . . . . . . . . . . Ballistic Cannon . | . . . . . . . . . . . . . . . . . . . . . . . . . Launcher 12 | . . . . 1 1 . 1 1 . 1 . . . . 1 2 . 2 . . . 1 . 1 Special Weapon 1 | . . . . . . . . . . . . . . . . . . . . . . 1 . . Impact Weapon 2 | . 2 . . . . . . . . . . . . . . . . . . . . . . . Slashing Weapon 1 | . . . . . . . . . . . . . . . . . . . . . . . . 1 Piercing Weapon 2 | . . . . . . . . . . . . . . . . . . . . . . 2 . . Special Melee Weapon . | . . . . . . . . . . . . . . . . . . . . . . . . . Unidentified Prototypes 12 | . . 1 . . . . . . . . . . . . . . 5 1 1 . . . . 4 Corrupted Parts 1 | . . . 1 . . . . . . . . . . . . . . . . . . . . . System Corruption 1 | . . . 1 . . . . . . . . . . . . . . . . . . . . . Parts Lost 46 | . . 3 1 9 1 . . . . 2 . . . . . . . 15 1 . . 4 . 10 Power 9 | . . 2 . 1 . . . . . 1 . . . . . . . 3 . . . 1 . 1 Propulsion 17 | . . . 1 4 . . . . . 1 . . . . . . . 6 1 . . . . 4 Utility 12 | . . 1 . 1 . . . . . . . . . . . . . 3 . . . 3 . 4 Weapon 8 | . . . . 3 1 . . . . . . . . . . . . 3 . . . . . 1 Highest Loss Streak 10 | . . 2 1 8 1 . . . . 2 . . . . . . . 10 1 . . 3 . 8 To Critical Strikes 1 | . . . . . . . . . . 1 . . . . . . . . . . . . . . Average Slot Usage (%) 72 | . 87 85 72 64 79 99 100 100 100 100 97 100 100 98 100 100 99 61 39 31 34 51 44 43 Engine 1 | . 14 8 . 2 2 . . . . 1 6 6 6 3 . . . . . . . . . . Core 3 | . . . . 4 6 7 7 7 7 5 3 6 6 6 11 11 11 1 . . . . 4 3 Leg 5 | . 21 28 32 14 5 . . . . . . . . . . . . . . . . . . . Hover 18 | . . . . . 2 38 38 38 38 38 40 40 40 35 35 35 35 23 9 5 8 13 14 11 Device 9 | . 2 5 2 5 13 14 14 15 15 15 13 13 13 16 17 16 16 10 4 5 5 3 6 5 Storage 6 | . 14 14 11 11 8 7 7 7 7 7 6 6 6 5 5 5 5 5 5 5 5 3 . . Processor 4 | . . . . . . 6 7 7 7 7 6 6 6 5 5 5 5 5 5 5 5 6 9 8 Hackware 3 | . . . . . . . . . . . . . . 4 5 5 5 5 9 10 10 14 4 6 Protection 1 | . . . 4 4 7 . . . . . . . . . . . . . . . . . . . Energy Gun 5 | . 3 . . . 7 7 7 18 23 16 20 20 20 17 15 16 17 1 . . . . . . Ballistic Gun 2 | . 3 . . 2 14 15 14 . . . . . . . . . . . . . . . . . Impact Weapon 3 | . 20 28 22 10 . . . . . . . . . . . . . . . . . . . . Naked Turns . | . . . . . . . . . . . . . . . . . . . . . . . . . Heaviest Build 52 | 12 15 19 22 24 33 29 29 33 30 32 40 40 40 46 48 48 46 52 22 11 11 43 23 27 Greatest Support 52 | 40 40 26 39 39 21 35 35 35 35 35 42 42 45 48 48 48 52 52 22 11 21 32 32 32 Greatest Overweight (x) 4 | . . . . 1 4 . . . . . . . . . . . . 1 . . . 1 . 2 Average Overweight (x) . | . . . . . 2 . . . . . . . . . . . . . . . . . . . Largest Inventory Capacity 10 | 8 8 10 10 10 10 10 10 10 10 10 10 10 10 10 10 10 10 10 10 10 10 10 5 5 Average Capacity 9 | 7 8 9 10 10 9 10 10 10 10 10 10 10 10 10 10 10 10 10 10 10 10 8 5 5 Most Carried 10 | 2 6 8 9 8 10 9 9 10 10 10 10 10 10 10 10 10 10 10 10 10 10 9 5 5 Average Carried 7 | 1 4 6 7 6 4 7 9 9 10 9 9 10 10 9 10 10 9 7 7 10 9 6 4 4 Final Capacity 10 | 8 8 10 10 10 10 10 10 10 10 10 10 10 10 10 10 10 10 10 10 10 10 5 5 5 Final Carried 10 | 2 6 8 7 4 10 9 9 10 10 8 10 10 10 10 10 10 10 8 10 10 9 5 5 5 Class Distribution -------------------- 41% | Mutant 23% | Derelict-Skirmisher 21% | Hacker-Mutant 7% | Scavenger-Skirmisher 3% | Scavenger-Tank Dominant Class ---------------- Mutant | -10/Materials Mutant | -10/Mines Mutant | -9/Materials Mutant | -9/Mines Scavenger-Tank | -8/Materials Scavenger-Skirmisher | -7/Factory Scavenger-Skirmisher | -7/Lower Caves Derelict-Skirmisher | -7/Lower Caves Derelict-Skirmisher | -7/Data Miner Derelict-Skirmisher | -6/Proximity Caves Derelict-Skirmisher | -6/Factory Derelict-Skirmisher | -6/Waste Derelict-Skirmisher | -6/Factory Derelict-Skirmisher | -5/Factory Derelict-Skirmisher | -5/Upper Caves Derelict-Skirmisher | -5/Upper Caves Derelict-Skirmisher | -5/Zhirov Mutant | -4/Proximity Caves Hacker-Mutant | -4/Factory Hacker-Mutant | -4/Waste Hacker-Mutant | -4/Factory Hacker-Mutant | -4/Extension Mutant | -3/Research Mutant | -3/Testing Resources | -11 -10 -10 -9 -9 -8 -7 -7 -7 -7 -6 -6 -6 -6 -5 -5 -5 -5 -4 -4 -4 -4 -4 -3 -3 ----------- Run | Yrd Mat Min Mat Min Mat Fac Low Low Dat Pro Fac Was Fac Fac Upp Upp Zhi Pro Fac Was Fac Ext Res Tes Matter Collected 1802 | 238 84 20 40 46 288 46 137 102 . 3 . . 106 . 62 156 . 38 . . 3 375 . 58 Remotely . | . . . . . . . . . . . . . . . . . . . . . . . . . Salvage Created 2189 | . 176 93 365 123 511 46 95 62 . 40 . . 236 . 56 146 . 167 . . . . 30 43 Parts 89 | . 11 3 9 9 27 2 1 4 . 2 . . 8 . 2 4 . . . . . . 4 3 Haulers Intercepted 6 | . 1 . 1 . 1 1 . . . . . . 2 . . . . . . . . . . . Recyclers Shooed 3 | . . . . . 3 . . . . . . . . . . . . . . . . . . . Parts Field Recycled . | . . . . . . . . . . . . . . . . . . . . . . . . . Retrieved Matter . | . . . . . . . . . . . . . . . . . . . . . . . . . Parts Self-Destructed 11 | . . . . . . . 1 2 . 1 . . . . 4 . . 3 . . . . . . Prevented 3 | . . . . . . . . 2 . . . . . . . 1 . . . . . . . . Kills | -11 -10 -10 -9 -9 -8 -7 -7 -7 -7 -6 -6 -6 -6 -5 -5 -5 -5 -4 -4 -4 -4 -4 -3 -3 ------- Run | Yrd Mat Min Mat Min Mat Fac Low Low Dat Pro Fac Was Fac Fac Upp Upp Zhi Pro Fac Was Fac Ext Res Tes Combat Hostiles Destroyed 44 | . 5 2 5 8 10 . 3 2 . 3 . . . . 3 2 . 1 . . . . . . Melee 5 | . 1 2 . 2 . . . . . . . . . . . . . . . . . . . . Guns 17 | . 3 . . 1 7 . 2 1 . . . . . . 1 2 . . . . . . . . AOE 16 | . . . . 5 3 . 1 1 . 3 . . . . 2 . . 1 . . . . . . Classes Destroyed 12 | . 3 2 2 1 1 . . . . . . . 1 . . 1 . . . . . . . 1 Worker 1 | . . 1 . . . . . . . . . . . . . . . . . . . . . . Tunneler 2 | . . 1 . . . . . . . . . . . . . . . . . . . . 1 . Hauler 6 | . 1 . 1 . 1 1 . . . . . . 2 . . . . . . . . . . . Recycler 2 | . . . 1 . 1 . . . . . . . . . . . . . . . . . . . Operator 1 | . . . . . . . . . . . . . 1 . . . . . . . . . . . Swarmer 17 | . 3 . . 3 4 . 1 . . 3 . . . . 3 . . . . . . . . . Grunt 13 | . 2 2 1 2 3 . 1 2 . . . . . . . . . . . . . . . . Researcher 1 | . . . . . . . . . . . . . . . . . . . . . . . . 1 Sentry 7 | . . . 4 . 2 . 1 . . . . . . . . . . . . . . . . . Hunter 3 | . . . . . 1 . . . . . . . . . . 1 . 1 . . . . . . Assembled 3 | . . . . 3 . . . . . . . . . . . . . . . . . . . . Mutant 1 | . . . . . . . . . . . . . . . . 1 . . . . . . . . Best Kill Streak 6 | . 3 3 2 3 6 1 3 1 . 2 . . 2 . 3 1 . 1 . . . . 1 1 Combat Bots Only 6 | . 3 1 1 3 6 . 3 1 . 2 . . . . 3 1 . 1 . . . . . . Max Kills in Single Turn 2 | . 1 1 1 2 2 1 1 1 . 1 . . 1 . 2 1 . 1 . . . . 1 1 Gunslinging . | . . . . . . . . . . . . . . . . . . . . . . . . . Exploded 2 | . . . . 2 2 . 1 1 . 1 . . . . 2 . . 1 . . . . . . Melee 1 | . 1 1 . 1 . . . . . . . . . . . . . . . . . . . . Uniques/NPCs Destroyed . | . . . . . . . . . . . . . . . . . . . . . . . . . Combat | -11 -10 -10 -9 -9 -8 -7 -7 -7 -7 -6 -6 -6 -6 -5 -5 -5 -5 -4 -4 -4 -4 -4 -3 -3 -------- Run | Yrd Mat Min Mat Min Mat Fac Low Low Dat Pro Fac Was Fac Fac Upp Upp Zhi Pro Fac Was Fac Ext Res Tes Hostile Shots Fired 584 | . 15 34 25 51 39 9 38 6 . 17 . . . . 9 8 . 148 16 . 15 24 4 126 Missed 213 | . 5 10 7 13 8 6 18 4 . 9 . . . . 5 3 . 60 6 . 9 5 1 44 Damage Taken 7228 | . 94 497 256 724 496 28 216 31 . 135 . . . . 57 160 . 1594 187 . 141 590 83 1939 Core 3088 | . 21 140 85 116 106 . 43 . . . . . . . . . . 712 62 . 134 364 59 1246 Absorbed by Shields 389 | . . . . . . . . . . . . . . . . . . . . . . 44 . 345 Redirected to Shielding 108 | . . . . . . . 33 . . . . . . . . 37 . 38 . . . . . . Regen/Repaired (Parts) 273 | . . . . . 232 . . . . . . . . . . . . . . . . . . 41 Core Remaining (%) 66 | 100 . 35 . 49 80 . . . . 93 . . 100 . . . . 23 . . . 51 . . Volleys Fired 90 | . 4 . . 4 32 3 5 5 . 4 1 . 5 . 5 14 . 6 1 . . . . 1 Largest 3 | . 2 . . 1 3 3 3 3 . 3 3 . 3 . 2 3 . 2 1 . . . . 1 Hottest 180 | . 70 . . 30 121 121 128 180 . 180 180 . 180 . 120 180 . 120 88 . . . . . Shots Fired 178 | . 8 . . 4 72 9 15 9 . 6 3 . 15 . 8 20 . 7 1 . . . . 1 Gun 145 | . 8 . . 1 70 9 12 7 . 3 3 . 15 . 6 9 . 2 . . . . . . Cannon 1 | . . . . . . . . . . . . . . . . . . . 1 . . . . . Launcher 32 | . . . . 3 2 . 3 2 . 3 . . . . 2 11 . 5 . . . . . 1 Special . | . . . . . . . . . . . . . . . . . . . . . . . . . Kinetic 60 | . 4 . . 1 42 6 7 . . . . . . . . . . . . . . . . . Thermal 40 | . 4 . . . 28 3 5 . . . . . . . . . . . . . . . . . Explosive 31 | . . . . 3 2 . 3 2 . 3 . . . . 2 11 . 5 . . . . . . Electromagnetic 46 | . . . . . . . . 7 . 3 3 . 15 . 6 9 . 2 1 . . . . . Robot Hit Streak 24 | . 3 . . 2 15 3 10 2 . 4 1 . 24 . 3 7 . 8 9 . . . . 10 Robot Miss Streak 6 | . 3 . . 2 4 1 1 3 . 1 6 . 1 . 3 2 . . . . . . . . Penetration Max . | . . . . . . . . . . . . . . . . . . . . . . . . . Secondary Targets . | . . . . . . . . . . . . . . . . . . . . . . . . . Shots Hit Robots 155 | . 13 11 19 6 42 5 10 5 . 5 1 . 13 . 5 8 . 6 1 . . 1 1 3 Core Hits 88 | . 5 3 1 9 21 1 5 9 . 4 1 . 6 . 6 8 . 8 . . . . . 1 Critical Kills 2 | . 1 1 . . . . . . . . . . . . . . . . . . . . . . Critical Parts Destroyed 13 | . 2 2 7 1 1 . . . . . . . . . . . . . . . . . . . Critical Strikes 19 | . 3 3 7 1 4 . . . . . . . . . . . . . . . . 1 . . Burn 3 | . . . . . 3 . . . . . . . . . . . . . . . . . . . Destroy 1 | . . . . . 1 . . . . . . . . . . . . . . . . . . . Smash 14 | . 3 3 7 1 . . . . . . . . . . . . . . . . . . . . Impale 1 | . . . . . . . . . . . . . . . . . . . . . . 1 . . Melee Attacks 88 | . 14 21 22 9 . . . . . . . . . . . . . . . . . 2 2 18 Impact 66 | . 14 21 22 9 . . . . . . . . . . . . . . . . . . . . Slashing 13 | . . . . . . . . . . . . . . . . . . . . . . . . 13 Piercing 9 | . . . . . . . . . . . . . . . . . . . . . . 2 2 5 Sneak Attacks 8 | . 1 3 3 . . . . . . . . . . . . . . . . . . . 1 . Combat Hostiles . | . . . . . . . . . . . . . . . . . . . . . . . . . Follow-up Attacks 10 | . 2 3 4 1 . . . . . . . . . . . . . . . . . . . . Damage Inflicted 5614 | . 435 618 755 455 719 80 306 148 . 322 20 . 363 . 176 230 . 614 51 . 16 78 51 177 Guns 1683 | . 63 . . 12 622 80 146 78 . 50 20 . 323 . 55 170 . 64 . . . . . . Cannons 51 | . . . . . . . . . . . . . . . . . . . 51 . . . . . Explosions 1630 | . . . . 266 97 . 160 70 . 272 . . 40 . 121 60 . 544 . . . . . . Melee 2211 | . 372 618 755 177 . . . . . . . . . . . . . . . . . 78 51 160 Ramming 39 | . . . . . . . . . . . . . . . . . . 6 . . 16 . . 17 Kinetic 519 | . 38 . . 12 367 59 43 . . . . . . . . . . . . . . . . . Thermal 444 | . 25 . . . 255 21 103 . . . . . 40 . . . . . . . . . . . Explosive 1548 | . . . . 266 97 . 160 70 . 272 . . . . 121 18 . 544 . . . . . . Electromagnetic 853 | . . . . . . . . 78 . 50 20 . 323 . 55 212 . 64 51 . . . . . Impact 1922 | . 372 618 755 177 . . . . . . . . . . . . . . . . . . . . Slashing 160 | . . . . . . . . . . . . . . . . . . . . . . . . 160 Piercing 129 | . . . . . . . . . . . . . . . . . . . . . . 78 51 . Highest Corruption 13 | . . . 1 4 . . . . . . . . . . . . . . . 6 8 13 . 13 Average Corruption 6 | . . . 1 2 . . . . . . . . . . . . . . . 6 6 9 . 6 Corruption Purged . | . . . . . . . . . . . . . . . . . . . . . . . . . Corruption Blocked 8 | . . . . . . . . . . . . . . . . . . . . . . . . 8 Effects 36 | . . . . 3 . . . . . . . . . . . . . . . 3 10 19 . 1 Message Errors 14 | . . . . 2 . . . . . . . . . . . . . . . 1 . 10 . 1 Matter Fused 5 | . . . . . . . . . . . . . . . . . . . . . 3 2 . . Heat Flow Errors 5 | . . . . . . . . . . . . . . . . . . . . . 4 1 . . Energy Discharges 4 | . . . . . . . . . . . . . . . . . . . . 1 1 2 . . Data Loss (minor) 3 | . . . . . . . . . . . . . . . . . . . . 1 1 1 . . Data Loss (major) 2 | . . . . 1 . . . . . . . . . . . . . . . . . 1 . . Alerts 3 | . . . . . . . . . . . . . . . . . . . . . 1 2 . . Overload Shots . | . . . . . . . . . . . . . . . . . . . . . . . . . Overflow Damage 830 | . 51 244 270 81 . . . . . . . . . . . . . 19 41 . . 86 21 17 Projectiles 41 | . . . . . . . . . . . . . . . . . . . 41 . . . . . Explosions 41 | . . . . 22 . . . . . . . . . . . . . 19 . . . . . . Melee 748 | . 51 244 270 59 . . . . . . . . . . . . . . . . . 86 21 17 Knockbacks 10 | . 1 3 5 1 . . . . . . . . . . . . . . . . . . . . Impact 10 | . 1 3 5 1 . . . . . . . . . . . . . . . . . . . . Kinetic . | . . . . . . . . . . . . . . . . . . . . . . . . . Secondary . | . . . . . . . . . . . . . . . . . . . . . . . . . Self-Inflicted Damage 193 | . . . . 80 10 . . . . 12 . . . . . 73 . 3 . . 7 . . 8 Shots 6 | . . . . 2 1 . . . . 1 . . . . . 2 . . . . . . . . Rammed 7 | . . . . . . . . . . . . . . . . . . 1 . . 3 . . 3 Targets Rammed 7 | . . . . . . . . . . . . . . . . . . 1 . . 3 . . 3 Kicked . | . . . . . . . . . . . . . . . . . . . . . . . . . Crushed . | . . . . . . . . . . . . . . . . . . . . . . . . . Highest Temperature 238 | . 36 . . . 123 17 78 168 . 111 129 . 96 . . 118 . 8 22 . 238 201 . . Average Temperature 49 | . 19 . . . 43 9 40 65 . 58 37 . 47 . . 37 . 7 16 . 103 102 . . Received Heat Transfer 789 | . 24 138 126 27 180 12 111 18 . . . . . . . . . 87 . . . 31 18 17 Siege Activations . | . . . . . . . . . . . . . . . . . . . . . . . . . Robots Corrupted 1 | . . . . . . . . . . . . . 1 . . . . . . . . . . . Combat Hostiles . | . . . . . . . . . . . . . . . . . . . . . . . . . Parts Fried 17 | . 1 2 10 . . . . . . . . . 1 . . 2 . 1 . . . . . . Impact Corruptions 18 | . 2 6 8 2 . . . . . . . . . . . . . . . . . . . . Robots Melted . | . . . . . . . . . . . . . . . . . . . . . . . . . Combat Hostiles . | . . . . . . . . . . . . . . . . . . . . . . . . . Parts Melted 1 | . . . . . 1 . . . . . . . . . . . . . . . . . . . Heat Transferred 1197 | . 74 . . . 851 37 185 . . . . . 50 . . . . . . . . . . . Parts Sabotaged . | . . . . . . . . . . . . . . . . . . . . . . . . . Parts Stolen . | . . . . . . . . . . . . . . . . . . . . . . . . . Parts Stripped . | . . . . . . . . . . . . . . . . . . . . . . . . . Power Chain Reactions 2 | . . . . . . . . . . . . . 1 . . 1 . . . . . . . . Alert | -11 -10 -10 -9 -9 -8 -7 -7 -7 -7 -6 -6 -6 -6 -5 -5 -5 -5 -4 -4 -4 -4 -4 -3 -3 ------- Run | Yrd Mat Min Mat Min Mat Fac Low Low Dat Pro Fac Was Fac Fac Upp Upp Zhi Pro Fac Was Fac Ext Res Tes Peak Influence 372 | . 202 108 243 80 372 162 . . . . 55 49 152 98 . . . . 59 . 15 301 85 203 Initial 105 | . . 78 41 . 30 105 . . . . 40 19 34 74 . . . . 9 . . 7 48 47 Average 86 | . 105 77 93 51 240 110 . . . . 45 37 61 92 . . . . 20 . 2 119 57 109 Maximum Alert Level 1 | . 1 . 1 . 1 . . . . . . . . . . . . . . . . 1 . 1 Low Security (%) 87 | 100 91 100 91 100 31 100 . . . . 100 100 100 100 . . . . 100 100 100 62 100 98 Level 1 12 | . 8 . 8 . 68 . . . . . . . . . . . . . . . . 37 . 1 Level 2 . | . . . . . . . . . . . . . . . . . . . . . . . . . Level 3 . | . . . . . . . . . . . . . . . . . . . . . . . . . Level 4 . | . . . . . . . . . . . . . . . . . . . . . . . . . Level 5 . | . . . . . . . . . . . . . . . . . . . . . . . . . High Security . | . . . . . . . . . . . . . . . . . . . . . . . . . Max Security . | . . . . . . . . . . . . . . . . . . . . . . . . . Squads Dispatched 15 | . . . . . . . . . . 1 . . . . . . . . 2 . 5 2 . 5 Investigation 4 | . . . . . . . . . . 1 . . . . . . . . . . 1 1 . 1 Extermination 2 | . . . . . . . . . . . . . . . . . . . . . 1 . . 1 Reinforcement 8 | . . . . . . . . . . . . . . . . . . . 2 . 3 1 . 2 Assault 1 | . . . . . . . . . . . . . . . . . . . . . . . . 1 Garrison . | . . . . . . . . . . . . . . . . . . . . . . . . . Intercept . | . . . . . . . . . . . . . . . . . . . . . . . . . Searches Triggered . | . . . . . . . . . . . . . . . . . . . . . . . . . Construction Impeded 2 | . . . . . . . . . . . . . . . . . . . . . . 1 . 1 Haulers Reinforced . | . . . . . . . . . . . . . . . . . . . . . . . . . Active Scanning Responses . | . . . . . . . . . . . . . . . . . . . . . . . . . Cargo Convoy Interrupts . | . . . . . . . . . . . . . . . . . . . . . . . . . Stealth | -11 -10 -10 -9 -9 -8 -7 -7 -7 -7 -6 -6 -6 -6 -5 -5 -5 -5 -4 -4 -4 -4 -4 -3 -3 --------- Run | Yrd Mat Min Mat Min Mat Fac Low Low Dat Pro Fac Was Fac Fac Upp Upp Zhi Pro Fac Was Fac Ext Res Tes Distress Signals 5 | . 2 . . . . . . . . . . . . . . . . 1 1 . . . . 1 Communications Jammed . | . . . . . . . . . . . . . . . . . . . . . . . . . Distress Signals . | . . . . . . . . . . . . . . . . . . . . . . . . . Times Spotted 157 | . 11 3 10 21 14 6 3 4 . 5 1 5 1 . 4 2 . 17 7 6 6 15 2 14 Peak Tracking Total 8 | . 4 2 5 8 4 2 3 2 . 3 1 5 1 . 4 1 . 8 3 6 2 4 2 7 Tactical Retreats 18 | . 1 . 2 3 . . . 2 . 1 . . . . . . . 4 1 . 1 1 . 2 Traps | -11 -10 -10 -9 -9 -8 -7 -7 -7 -7 -6 -6 -6 -6 -5 -5 -5 -5 -4 -4 -4 -4 -4 -3 -3 ------- Run | Yrd Mat Min Mat Min Mat Fac Low Low Dat Pro Fac Was Fac Fac Upp Upp Zhi Pro Fac Was Fac Ext Res Tes Traps Triggered 6 | . . . . . . . . . . . 1 . . . . . . . 1 . 1 3 . . Indirectly . | . . . . . . . . . . . . . . . . . . . . . . . . . Trap Hack Attempts . | . . . . . . . . . . . . . . . . . . . . . . . . . Triggered . | . . . . . . . . . . . . . . . . . . . . . . . . . Disarmed . | . . . . . . . . . . . . . . . . . . . . . . . . . Reprogrammed 1 | . . . . . 1 . . . . . . . . . . . . . . . . . . . Reused . | . . . . . . . . . . . . . . . . . . . . . . . . . Traps Extracted . | . . . . . . . . . . . . . . . . . . . . . . . . . Installed . | . . . . . . . . . . . . . . . . . . . . . . . . . Triggered . | . . . . . . . . . . . . . . . . . . . . . . . . . Machines | -11 -10 -10 -9 -9 -8 -7 -7 -7 -7 -6 -6 -6 -6 -5 -5 -5 -5 -4 -4 -4 -4 -4 -3 -3 ---------- Run | Yrd Mat Min Mat Min Mat Fac Low Low Dat Pro Fac Was Fac Fac Upp Upp Zhi Pro Fac Was Fac Ext Res Tes Machines Disabled 6 | . . . . . 1 . . . . . . . . . . . . . . . . 3 . 2 Max in Single Turn 1 | . . . . . 1 . . . . . . . . . . . . . . . . . . 1 Garrison Access 1 | . . . . . . . . . . . . . . . . . . . . . 1 . . . Machines Repaired . | . . . . . . . . . . . . . . . . . . . . . . . . . Machines Dismantled 1 | . . . . . . . . . . . . . . . . . . . . . . 1 . . Machines Sabotaged . | . . . . . . . . . . . . . . . . . . . . . . . . . Overloaded Fab Kills . | . . . . . . . . . . . . . . . . . . . . . . . . . Hacking | -11 -10 -10 -9 -9 -8 -7 -7 -7 -7 -6 -6 -6 -6 -5 -5 -5 -5 -4 -4 -4 -4 -4 -3 -3 --------- Run | Yrd Mat Min Mat Min Mat Fac Low Low Dat Pro Fac Was Fac Fac Upp Upp Zhi Pro Fac Was Fac Ext Res Tes Machines Accessed 58 | . 3 . 3 . 5 3 . 1 4 1 2 . 4 2 . . 9 . 4 . 7 5 . 5 Terminals 29 | . 3 . 3 . 3 2 . . . 1 . . 3 1 . . . . 1 . 5 4 . 3 Fabricators 2 | . . . . . . . . . . . . . 1 . . . . . 1 . . . . . Repair Stations 4 | . . . . . 1 1 . . . . . . . 1 . . . . . . . . . 1 Recycling Units 6 | . . . . . 1 . . . . . 1 . . . . . . . 2 . 1 1 . . Scanalyzers 2 | . . . . . . . . . . . 1 . . . . . . . . . . . . 1 Garrison Access 1 | . . . . . . . . . . . . . . . . . . . . . 1 . . . Total Hacks 195 | . 12 . 8 . 11 5 . 1 29 3 7 . 5 4 . . 48 . 20 . 18 13 . 11 Successful 141 | . 7 . 2 . 9 3 . 1 29 3 7 . 1 3 . . 48 . 9 . 6 7 . 6 Failed 53 | . 5 . 6 . 2 2 . . . . . . 4 1 . . . . 11 . 12 5 . 5 Catastrophic 9 | . . . 1 . . 1 . . . . . . 1 1 . . . . . . 3 1 . 1 Database Lockouts 1 | . . . . . . . . . . . . . . . . . . . . . . 1 . . Manual 32 | . 8 . 5 . 1 . . . . . . . . 1 . . . . 6 . 6 5 . . Terminals 80 | . 12 . 8 . 5 3 . . . 3 . . 4 2 . . . . 15 . 11 11 . 6 Fabricators 2 | . . . . . . . . . . . . . 1 . . . . . 1 . . . . . Repair Stations 9 | . . . . . 3 2 . . . . . . . 2 . . . . . . . . . 2 Recycling Units 16 | . . . . . 3 . . . . . 2 . . . . . . . 4 . 5 2 . . Scanalyzers 8 | . . . . . . . . . . . 5 . . . . . . . . . . . . 3 Garrison Access 2 | . . . . . . . . . . . . . . . . . . . . . 2 . . . Terminal Hacks 107 | . 4 . 1 . 4 2 . 1 29 3 . . . 1 . . 48 . 5 . 2 5 . 2 Record 53 | . . . . . . . . . 11 3 . . . . . . 36 . . . . 2 . 1 Part Schematic 13 | . . . . . . . . . 9 . . . . . . . 4 . . . . . . . Robot Schematic 6 | . . . . . . . . . 6 . . . . . . . . . . . . . . . Robot Analysis 5 | . . . . . . . . . . . . . . 1 . . 4 . . . . . . . Prototype ID Bank 10 | . 1 . . . 1 . . . 3 . . . . . . . 4 . 1 . . . . . Open Door 3 | . . . . . . . . 1 . . . . . . . . . . . . 1 1 . . Open DSF 1 | . . . . . . . . . . . . . . . . . . . . . 1 . . . Level Access Points 2 | . . . . . 1 . . . . . . . . . . . . . 1 . . . . . Emergency Access Points 1 | . . . . . . . . . . . . . . . . . . . 1 . . . . . Alert Level 3 | . . . . . . 1 . . . . . . . . . . . . 1 . . 1 . . Unreport Threat 1 | . . . 1 . . . . . . . . . . . . . . . . . . . . . Locate Traps 1 | . . . . . 1 . . . . . . . . . . . . . . . . . . . Reprogram Traps 1 | . . . . . 1 . . . . . . . . . . . . . . . . . . . Recall Reinforcements 1 | . . . . . . . . . . . . . . . . . . . . . . 1 . . Zone Layout 5 | . 3 . . . . 1 . . . . . . . . . . . . 1 . . . . . Protovariant Controls 1 | . . . . . . . . . . . . . . . . . . . . . . . . 1 Fabricator Hacks 2 | . . . . . . . . . . . . . 1 . . . . . 1 . . . . . Build 2 | . . . . . . . . . . . . . 1 . . . . . 1 . . . . . Repair Station Hacks 6 | . . . . . 2 1 . . . . . . . 1 . . . . . . . . . 2 Scan Component 4 | . . . . . 1 1 . . . . . . . 1 . . . . . . . . . 1 Repair 2 | . . . . . 1 . . . . . . . . . . . . . . . . . . 1 Recycling Unit Hacks 12 | . . . . . 2 . . . . . 2 . . . . . . . 3 . 3 2 . . Process 1 | . . . . . . . . . . . . . . . . . . . . . 1 . . . Report Inventory 6 | . . . . . 1 . . . . . 1 . . . . . . . 2 . 1 1 . . Retrieve Matter 2 | . . . . . . . . . . . . . . . . . . . 1 . 1 . . . Retrieve Components 3 | . . . . . 1 . . . . . 1 . . . . . . . . . . 1 . . Scanalyzer 7 | . . . . . . . . . . . 5 . . . . . . . . . . . . 2 Insert Component 3 | . . . . . . . . . . . 2 . . . . . . . . . . . . 1 Analyze 4 | . . . . . . . . . . . 3 . . . . . . . . . . . . 1 Garrison Access Hacks 1 | . . . . . . . . . . . . . . . . . . . . . 1 . . . Seal Access 1 | . . . . . . . . . . . . . . . . . . . . . 1 . . . Unauthorized Hacks 6 | . 3 . 1 . 1 . . . . . . . . 1 . . . . . . . . . . Terminals 5 | . 3 . 1 . . . . . . . . . . 1 . . . . . . . . . . Botnet 5 | . 3 . 1 . . . . . . . . . . 1 . . . . . . . . . . Fabricators . | . . . . . . . . . . . . . . . . . . . . . . . . . Repair Stations . | . . . . . . . . . . . . . . . . . . . . . . . . . Recycling Units 1 | . . . . . 1 . . . . . . . . . . . . . . . . . . . Reject 1 | . . . . . 1 . . . . . . . . . . . . . . . . . . . Scanalyzers . | . . . . . . . . . . . . . . . . . . . . . . . . . Garrison Access . | . . . . . . . . . . . . . . . . . . . . . . . . . Data Cores Recovered . | . . . . . . . . . . . . . . . . . . . . . . . . . Used . | . . . . . . . . . . . . . . . . . . . . . . . . . Hacking Detections 33 | . 3 . 3 . 3 3 . . . 1 1 . 3 2 . . . . 1 . 5 4 . 4 Full Trace Events 4 | . . . . . . . . . . 1 . . . . . . . . . . 1 1 . 1 Feedback Events . | . . . . . . . . . . . . . . . . . . . . . . . . . Feedback Blocked 1 | . . . . . . . . . . . . . . . . . . . . . . 1 . . Robot Schematics Acquired 7 | . . . . . . . . . 6 . . . . . . . . . . . . . . 1 Robots Built 2 | . . . . . . . . . . . . . 2 . . . . . . . . . . . Authchips . | . . . . . . . . . . . . . . . . . . . . . . . . . Time 152 | . . . . . . . . . . . . . 152 . . . . . . . . . . . Total Robot Build Rating 10 | . . . . . . . . . . . . . 10 . . . . . . . . . . . Part Schematics Acquired 16 | . . . . . . . . . 9 . 2 . . . . . 4 . . . . . . 1 Parts Built 1 | . . . . . . . . . . . . . . . . . . . 1 . . . . . Authchips . | . . . . . . . . . . . . . . . . . . . . . . . . . Time 69 | . . . . . . . . . . . . . . . . . . . 69 . . . . . Total Part Build Rating 9 | . . . . . . . . . . . . . . . . . . . 9 . . . . . Parts Repaired 2 | . . . . . 1 . . . . . . . . . . . . . . . . . . 1 Time 88 | . . . . . 26 . . . . . . . . . . . . . . . . . . 62 Parts Recycled . | . . . . . . . . . . . . . . . . . . . . . . . . . Recycled Matter 12 | . . . . . . . . . . . . . . . . . . . . . 12 . . . Retrieved Matter 12 | . . . . . . . . . . . . . . . . . . . . . 12 . . . Retrieved Components 13 | . . . . . 10 . . . . . 1 . . . . . . . . . . 2 . . Parts Scanalyzed 3 | . . . . . . . . . . . 2 . . . . . . . . . . . . 1 Part Schematics Acquired 3 | . . . . . . . . . . . 2 . . . . . . . . . . . . 1 Parts Damaged . | . . . . . . . . . . . . . . . . . . . . . . . . . Bothacking | -11 -10 -10 -9 -9 -8 -7 -7 -7 -7 -6 -6 -6 -6 -5 -5 -5 -5 -4 -4 -4 -4 -4 -3 -3 ------------ Run | Yrd Mat Min Mat Min Mat Fac Low Low Dat Pro Fac Was Fac Fac Upp Upp Zhi Pro Fac Was Fac Ext Res Tes Used RIF Installer . | . . . . . . . . . . . . . . . . . . . . . . . . . Robots Hacked . | . . . . . . . . . . . . . . . . . . . . . . . . . Non-combat . | . . . . . . . . . . . . . . . . . . . . . . . . . Combat . | . . . . . . . . . . . . . . . . . . . . . . . . . Robot Hacks Applied . | . . . . . . . . . . . . . . . . . . . . . . . . . Relay Couplers Released . | . . . . . . . . . . . . . . . . . . . . . . . . . Fabnet Peak Effective % . | . . . . . . . . . . . . . . . . . . . . . . . . . Robots Rewired . | . . . . . . . . . . . . . . . . . . . . . . . . . Allies Hacked . | . . . . . . . . . . . . . . . . . . . . . . . . . Hacks Repelled . | . . . . . . . . . . . . . . . . . . . . . . . . . Allies | -11 -10 -10 -9 -9 -8 -7 -7 -7 -7 -6 -6 -6 -6 -5 -5 -5 -5 -4 -4 -4 -4 -4 -3 -3 -------- Run | Yrd Mat Min Mat Min Mat Fac Low Low Dat Pro Fac Was Fac Fac Upp Upp Zhi Pro Fac Was Fac Ext Res Tes Total Allies 7 | . . . . 1 . . . . . . . . 2 . . . . . . . . 4 . . Largest Group 4 | . . . . . 1 . . . . . . . 2 . . . . . . . . 4 1 . Highest-Rated Group 285 | . . . . . 31 . . . . . . . 82 . . . . . . . . 285 159 . Highest-Rated Ally 159 | . . . . . 31 . . . . . . . 41 . . . . . . . . 159 159 . Total Orders . | . . . . . . . . . . . . . . . . . . . . . . . . . Ally Attacks 73 | . . . . . 12 . . . . . . . 11 . . . . . . . . 50 . . Total Damage 2752 | . . . . . 209 . . . . . . . 456 . . . . . . . . 2087 . . Kills 16 | . . . . . 2 . . . . . . . 4 . . . . . . . . 10 . . Allies Corrupted . | . . . . . . . . . . . . . . . . . . . . . . . . . Allies Melted . | . . . . . . . . . . . . . . . . . . . . . . . . . Intel | -11 -10 -10 -9 -9 -8 -7 -7 -7 -7 -6 -6 -6 -6 -5 -5 -5 -5 -4 -4 -4 -4 -4 -3 -3 ------- Run | Yrd Mat Min Mat Min Mat Fac Low Low Dat Pro Fac Was Fac Fac Upp Upp Zhi Pro Fac Was Fac Ext Res Tes Robot Analysis Total 5 | . . . . . . . . . . . . . . 1 . . 4 . . . . . . . Derelict Logs Recovered 12 | . . 1 . 1 . . 2 3 . 2 . . . . . 1 . 2 . . . . . . Drone Launches . | . . . . . . . . . . . . . . . . . . . . . . . . . Drone Recoveries . | . . . . . . . . . . . . . . . . . . . . . . . . . Exploration | -11 -10 -10 -9 -9 -8 -7 -7 -7 -7 -6 -6 -6 -6 -5 -5 -5 -5 -4 -4 -4 -4 -4 -3 -3 ------------- Run | Yrd Mat Min Mat Min Mat Fac Low Low Dat Pro Fac Was Fac Fac Upp Upp Zhi Pro Fac Was Fac Ext Res Tes Turns Passed 7808 | 84 362 330 459 341 551 291 255 317 43 111 378 41 260 80 101 327 168 1198 581 105 396 532 100 397 Spaces Moved 7900 | 49 222 223 276 238 271 263 417 622 97 213 297 99 311 169 208 560 363 606 500 130 578 609 142 437 Core 20 | 4 . . . . . . . . . . . . . . . . . . . . . . . 16 Treads 93 | 45 48 . . . . . . . . . . . . . . . . . . . . . . . Legs 786 | . 174 223 276 113 . . . . . . . . . . . . . . . . . . . . Wheels 351 | . . . . 125 226 . . . . . . . . . . . . . . . . . . . Hover 6650 | . . . . . 45 263 417 622 97 213 297 99 311 169 208 560 363 606 500 130 578 609 142 421 Flight . | . . . . . . . . . . . . . . . . . . . . . . . . . Fastest Speed 40 | 50 120 120 120 95 95 44 44 44 44 44 40 40 40 40 40 40 40 41 66 70 51 51 52 50 Average Speed 59 | 151 128 120 120 108 115 44 44 44 44 44 41 40 40 40 40 40 40 51 66 70 56 51 52 55 Slowest Speed 300 | 160 160 120 120 190 300 44 44 44 44 44 44 40 40 40 40 40 41 106 70 70 70 105 52 150 Overloaded Moves . | . . . . . . . . . . . . . . . . . . . . . . . . . Propulsion Burnouts . | . . . . . . . . . . . . . . . . . . . . . . . . . Robots Hopped . | . . . . . . . . . . . . . . . . . . . . . . . . . Cave-ins Triggered . | . . . . . . . . . . . . . . . . . . . . . . . . . Teleports 1 | . . . . . . . . . . . . . . . . . 1 . . . . . . . Exploration Rate (%) 40 | 5 53 63 25 44 29 7 66 63 70 40 7 72 9 6 45 60 62 71 9 88 17 49 4 36 Regions Visited 24 Branch Regions 12 Pre-discovered Areas 8 | . . . . . . . . 2 1 2 . . . . . . 3 . . . . . . . Known Exits Taken 16 | . . . . 1 1 1 1 1 1 1 . . 1 1 1 1 1 1 . . 1 1 1 . Unknown Exits Taken 4 | 1 1 1 1 . . . . . . . . . . . . . . . . . . . . . Scrap Searched 11 | . . 2 . . . . 1 2 . 1 . . . . 1 1 . 3 . . . . . . Spaces Dug 97 | . 2 . . . . . . . . . . . . . . 67 . 17 . . . . 1 10 Terrain Destroyed 369 | . 2 . . 26 25 . 9 7 . 24 . . 7 . 20 150 . 88 . . . . 1 10 Melee 13 | . 2 . . . . . . . . . . . . . . . . . . . . . 1 10 Projectile . | . . . . . . . . . . . . . . . . . . . . . . . . . AOE 356 | . . . . 26 25 . 9 7 . 24 . . 7 . 20 150 . 88 . . . . . . Terrain Rammed . | . . . . . . . . . . . . . . . . . . . . . . . . . Walls Destroyed . | . . . . . . . . . . . . . . . . . . . . . . . . . Machines Disabled . | . . . . . . . . . . . . . . . . . . . . . . . . . Actions | -11 -10 -10 -9 -9 -8 -7 -7 -7 -7 -6 -6 -6 -6 -5 -5 -5 -5 -4 -4 -4 -4 -4 -3 -3 --------- Run | Yrd Mat Min Mat Min Mat Fac Low Low Dat Pro Fac Was Fac Fac Upp Upp Zhi Pro Fac Was Fac Ext Res Tes Total 10623 | 56 268 252 367 299 441 430 474 655 96 223 548 100 434 181 216 640 385 1487 748 144 650 812 162 555 Wait 2310 | . 22 8 69 42 113 157 49 16 . 3 237 . 117 1 2 59 1 863 239 13 62 158 15 64 Move 7878 | 48 221 222 275 237 270 262 416 621 96 212 297 98 310 168 207 559 362 605 500 129 577 608 141 437 Hop . | . . . . . . . . . . . . . . . . . . . . . . . . . Pick Up 42 | 2 2 3 1 1 6 2 . 1 . . 6 1 . 2 . . 4 1 4 1 3 . 1 1 Fast Attach 54 | 6 5 2 1 2 12 . . 4 . . 1 . 1 3 . . 4 1 1 . 1 3 2 5 Attach 36 | . . 1 3 4 1 4 . . . 2 1 . . 1 . . 3 5 2 . 1 6 1 1 Detach 20 | . 2 . 1 . 2 1 . 1 . . . . . 1 . . 2 3 . . . 6 . 1 Swap 27 | . . . . 1 . 1 4 3 . 2 2 . . . 2 8 3 1 . . . . . . Drop 36 | . 2 1 . . 5 . . 4 . . 3 1 1 3 . . 6 1 1 1 3 . . 4 Fire 90 | . 4 . . 4 32 3 5 5 . 4 1 . 5 . 5 14 . 6 1 . . . . 1 Melee 71 | . 10 15 17 8 . . . . . . . . . . . . . . . . . 2 2 17 Ram 7 | . . . . . . . . . . . . . . . . . . 1 . . 3 . . 3 Kick . | . . . . . . . . . . . . . . . . . . . . . . . . . Crush . | . . . . . . . . . . . . . . . . . . . . . . . . . Escape Stasis 42 | . . . . . . . . . . . . . . . . . . . . . . 21 . 21 Rewire 2 | . . . . . . . . . . . . . . 2 . . . . . . . . . . Trap . | . . . . . . . . . . . . . . . . . . . . . . . . . Miscellaneous 8 | . . . . . . . . . . . . . . . . . . . . . . 8 . . Route ------- -11/Scrapyard -10/Materials -10/Mines -9/Materials -9/Mines -8/Materials (discovered 3 exits: *Fac x3) -7/Factory -7/Lower Caves -7/Lower Caves -7/Data Miner -6/Proximity Caves -6/Factory (discovered 2 exits: Fac x2) -6/Waste -6/Factory -5/Factory -5/Upper Caves -5/Upper Caves (discovered 2 exits: *Fac / *Zhi) -5/Zhirov -4/Proximity Caves -4/Factory (discovered 4 exits: Res x4) -4/Waste -4/Factory -4/Extension -3/Research -3/Testing History --------- Turn | Location | Event 11 | -11/Scrapyard | Discovered new exit (range 16) 85 | -11/Scrapyard | Entered Materials 304 | -10/Materials | Build established: Mutant 425 | -10/Materials | Discovered new exit (range 13) 447 | -10/Materials | Entered Mines 475 | -10/Mines | Met a Derelict bent on vengeance 500 | -10/Mines | YI-UF0 nonchalantly dropped a Grenade Launcher on the ground 670 | -10/Mines | Core integrity fell below 50% 727 | -10/Mines | Learned Materials trap positions 735 | -10/Mines | Found a damaged Exp. Sensor Array with a note attached 737 | -10/Mines | Found Prototype Device 737 | -10/Mines | Identified Exp. Sensor Array 767 | -10/Mines | Discovered new exit (range 9) 777 | -10/Mines | Entered Materials 777 | -9/Materials | Evolved 2 slots: Propulsion x1, Utility x1 778 | -9/Materials | Loaded intel: 14 trap records 1210 | -9/Materials | Discovered new exit (range 8) 1236 | -9/Materials | Entered Mines 1306 | -9/Mines | Assembled infested the area 1311 | -9/Mines | Assisted by a Guerilla fighting off Assembled 1439 | -9/Mines | Lost 8 parts (1p4n1u2w) 1483 | -9/Mines | Identified exit to Materials 1497 | -9/Mines | Core integrity fell below 50% 1573 | -9/Mines | Received a Mining Laser from a helpful Derelict 1577 | -9/Mines | Entered Materials 1577 | -8/Materials | Accompanied by 1 ally 1577 | -8/Materials | Evolved 2 slots: Utility x1, Weapon x1 1943 | -8/Materials | Repaired Med. Storage Unit 2007 | -8/Materials | Identified exit to Factory 2128 | -8/Materials | Entered Factory 2128 | -7/Factory | Evolved 2 slots: Propulsion x2 2392 | -7/Factory | Discovered new exit (range 16) 2418 | -7/Factory | Identified exit to Lower Caves 2419 | -7/Factory | Entered Lower Caves 2421 | -7/Lower Caves | Attracted the attention of an 0b10 checkpoint 2464 | -7/Lower Caves | Build established: Scavenger-Skirmisher 2531 | -7/Lower Caves | Encountered a Warlord checkpoint 2535 | -7/Lower Caves | Learned 12 Factory zone layouts 2626 | -7/Lower Caves | Identified exit to Lower Caves 2674 | -7/Lower Caves | Entered another Lower Caves area 2750 | -7/Lower Caves | Encountered a Warlord checkpoint 2756 | -7/Lower Caves | Learned Factory emergency access door positions 2981 | -7/Lower Caves | Learned location of Zion (-6) 2983 | -7/Lower Caves | Discovered new exit (range 11) 2987 | -7/Lower Caves | Identified exit to Data Miner 2989 | -7/Lower Caves | Build established: Derelict-Skirmisher 2991 | -7/Lower Caves | Entered Data Miner 2991 | -7/Data Miner | Discovered new exit (range 6) 3000 | -7/Data Miner | Met Data Miner 3016 | -7/Data Miner | Learned location of Section 7 (-2) 3016 | -7/Data Miner | Acquired the access code to Warlord's prototype stash 3024 | -7/Data Miner | Received God Mode back door access code from Data Miner 3033 | -7/Data Miner | Identified exit to Proximity Caves 3034 | -7/Data Miner | Entered Proximity Caves 3074 | -6/Proximity Caves | Identified exit to Factory 3093 | -6/Proximity Caves | Learned Factory security intel 3108 | -6/Proximity Caves | Learned location of Extension (-4) 3145 | -6/Proximity Caves | Entered Factory 3145 | -6/Factory | Evolved 2 slots: Power x1, Propulsion x1 3146 | -6/Factory | Identified exit to Factory 3523 | -6/Factory | Sucked down chute 3523 | -6/Factory | Entered Waste 3532 | -6/Waste | Spotted C-40 Crusher 3539 | -6/Waste | Spotted C-40 Crusher 3542 | -6/Waste | Spotted C-40 Crusher 3542 | -6/Waste | Spotted C-40 Crusher 3550 | -6/Waste | Spotted C-40 Crusher 3556 | -6/Waste | Discovered new exit (range 10) 3561 | -6/Waste | Identified exit to Factory 3564 | -6/Waste | Entered Factory 3739 | -6/Factory | Fabricated H-66 Slayer? 3822 | -6/Factory | Discovered exit to Factory (range 5) 3824 | -6/Factory | Entered another Factory area 3824 | -5/Factory | Evolved 2 slots: Utility x2 3900 | -5/Factory | Discovered new exit (range 10) 3904 | -5/Factory | Identified exit to Upper Caves 3904 | -5/Factory | Entered Upper Caves 4002 | -5/Upper Caves | Discovered new exit (range 9) 4005 | -5/Upper Caves | Identified exit to Upper Caves 4005 | -5/Upper Caves | Entered another Upper Caves area 4032 | -5/Upper Caves | Discovered new exit (range 7) 4033 | -5/Upper Caves | Learned Factory emergency access door positions 4133 | -5/Upper Caves | Attacked by a delusional Derelict stockpiling parts 4329 | -5/Upper Caves | Discovered new exit (range 8) 4331 | -5/Upper Caves | Identified exit to Zhirov 4332 | -5/Upper Caves | Entered Zhirov 4332 | -5/Zhirov | Discovered new exit (range 3) 4333 | -5/Zhirov | Identified exit to Proximity Caves 4340 | -5/Zhirov | Met Zhirov 4350 | -5/Zhirov | Learned location of Quarantine (-2) 4350 | -5/Zhirov | Learned location of Testing (-3) 4350 | -5/Zhirov | Learned location of Command (-1) 4357 | -5/Zhirov | Zhirov requested help retrieving the SGEMP Prototype 4383 | -5/Zhirov | Found Alien Artifact 4383 | -5/Zhirov | Identified Integrated Reactor 4383 | -5/Zhirov | Installed Integrated Reactor, increased core energy generation (+10) 4393 | -5/Zhirov | Found Alien Artifact 4431 | -5/Zhirov | Identified Transdimensional Reconstructor 4431 | -5/Zhirov | Warped through subspace 4500 | -5/Zhirov | Entered Proximity Caves 4528 | -4/Proximity Caves | Learned Research trap positions 4551 | -4/Proximity Caves | Spotted B-86 Titan 4591 | -4/Proximity Caves | Unaware initiated a cargo recovery operation 4594 | -4/Proximity Caves | Encountered a Derelict guarding a broken Freighter 4606 | -4/Proximity Caves | Found Prototype Hackware 4682 | -4/Proximity Caves | Lost 10 parts (2p4n2u2w) 4900 | -4/Proximity Caves | Build established: Mutant 5675 | -4/Proximity Caves | Core integrity fell below 50% 5694 | -4/Proximity Caves | Discovered new exit (range 8) 5698 | -4/Proximity Caves | Identified exit to Factory 5698 | -4/Proximity Caves | Entered Factory 5698 | -4/Factory | Evolved 2 slots: Utility x2 5699 | -4/Factory | Lost 4 parts (1p2n1u) 5787 | -4/Factory | Identified Exp. System Shield 5788 | -4/Factory | Identified exit to Research 5981 | -4/Factory | Fabricated Centrium Leg (x1) 6074 | -4/Factory | Build established: Hacker-Mutant 6279 | -4/Factory | Sucked down chute 6279 | -4/Factory | Entered Waste 6287 | -4/Waste | Spotted C-40 Crusher 6294 | -4/Waste | EMP discharged 6294 | -4/Waste | Spotted C-40 Crusher 6302 | -4/Waste | Spotted C-40 Crusher 6304 | -4/Waste | Spotted C-40 Crusher 6305 | -4/Waste | Spotted C-40 Crusher 6354 | -4/Waste | Spotted C-40 Crusher 6374 | -4/Waste | Discovered new exit (range 16) 6384 | -4/Waste | Identified exit to Factory 6384 | -4/Waste | Entered Factory 6413 | -4/Factory | Identified exit to DSF 6638 | -4/Factory | Spotted B-86 Titan 6753 | -4/Factory | Discovered new exit (range 6) 6779 | -4/Factory | Identified exit to Extension 6780 | -4/Factory | Entered Extension 6837 | -4/Extension | Rescued a captive Derelict 6837 | -4/Extension | Rescued a captive Derelict 6838 | -4/Extension | Central database locked down 6914 | -4/Extension | Rescued A7 6942 | -4/Extension | Rescued a captive Derelict 7162 | -4/Extension | Lost 3 allies 7206 | -4/Extension | System corruption reached 10% 7295 | -4/Extension | Spotted B-86 Titan 7301 | -4/Extension | Spotted B-86 Titan 7307 | -4/Extension | Discovered exit to Research (range 3) 7312 | -4/Extension | Entered Research 7312 | -3/Research | Accompanied by 1 ally (A7) 7312 | -3/Research | Evolved 2 slots: Power x1, Propulsion x1 7313 | -3/Research | Identified exit to Testing 7314 | -3/Research | Loaded intel: 74 trap records 7335 | -3/Research | Lost 3 parts (1p2u) 7337 | -3/Research | Spotted B-86 Titan 7412 | -3/Research | Entered Testing 7480 | -3/Testing | Repaired Imp. Linear Gravjet 7510 | -3/Testing | Found Prototype Energy Gun 7510 | -3/Testing | Identified Warp Gun 7542 | -3/Testing | Protovariant out of control (PP-RRFBL8F9YV) 7542 | -3/Testing | Unleashed a protovariant (PP-RRFBL8F9YV) 7552 | -3/Testing | Spotted PP-RRFBL8F9YV 7570 | -3/Testing | Build established: Mutant 7602 | -3/Testing | Found Prototype Hackware 7602 | -3/Testing | Identified Exp. Hacking Suite 7605 | -3/Testing | Found Prototype Slashing Weapon 7605 | -3/Testing | Identified Centrium Greatsword 7655 | -3/Testing | Spotted Alpha 7 7674 | -3/Testing | Spotted Striker 7674 | -3/Testing | Scanned by Researcher 7676 | -3/Testing | Spotted Striker 7692 | -3/Testing | Stole the SGEMP Prototype 7767 | -3/Testing | Core integrity fell below 50% 7785 | -3/Testing | Found Prototype Launcher 7785 | -3/Testing | Identified Containment Facilitator 7797 | -3/Testing | Core integrity fell below 20% 7797 | -3/Testing | System corruption reached 10% 7809 | -3/Testing | Destroyed by Striker with Plasma Lance Last Messages --------------- 07804_ Stasis bubble strength at 104. 07804_ Striker stasis bubble strength at 38. 07805_ U-05 Engineer lays Concrete. 07805_ Stasis bubble strength at 98. 07805_ Striker stasis bubble strength at 29. 07806_ U-05 Engineer lays Concrete. 07806_ Stasis bubble strength at 92. 07806_ Penetrated by Slug. 07806_ P-80 Master stasis bubble strength at 193. 07806_ Striker stasis bubble strength at 20. 07807_ Stasis bubble strength at 86. 07807_ Striker stasis bubble strength at 11. 07807_ U-05 Engineer lays Concrete. 07808_ Stasis bubble strength at 80. 07808_ Striker stasis bubble strength at 2. 07808_ U-05 Engineer lays Concrete. 07809_ Stasis bubble strength at 74. 07809_ Penetrated by Slug. 07809_ Striker stasis bubble bursts. [Achievement: Tester] Map ----- +----------------------------------------------------+ | ???????# """"" # #????????????# #???? | | ???????# """"" !# #????????????# #?????? ?? | | ???????# # ##########+#?# #??????##/#### | | ???????# """"" # # # #?# ######## + | | ???????# """"" # #"" """ # #?# # | | ???????# """"" # #"" """ # #?# # | | ???????# # #"" """ # ### / | | ???????########## #T # # ! | | ????????????????# #"" """ # ############ # | | ????????????????# #" """ # #??????????# #### | | ????????????????# # """ + #???######## #??? | | ????????????????# # #???# """ # #??? | | ???????????????## # #### ##### """" # #??? | | ????????????#### ## """" / #??? | | ??????????###"" ## """ # #??? | | ??????????# # u / # #??? | | ?????????##"" !]## !# #??? | | ?????????#" " #"T############# #??? | | ?????????#""""" p#""#???????????# #??? | | ?????????#""""" p # #####???????? #??? | | ????????######## # ! #???????? #??? | | ????????# =## # # # #??????? #??? | | ??####### ### #! =+ #???????## #??? | | ??# #p*7%# #????????# #??? | | ??#+##### ####/#####|K% # ""#????????+ #??? | | ? ??# # #=@!%# """#????????# #??? | | # """" ##### ## #*%%*# """#????????# #??? | | # """" #???# ## +[[%%/ #????????? #??? | | # """" #???# ## #!*==# """#????????? ???? | | # """" #???# ## =%==[# """#????????? ???? | | # #???# ## =[%%[#? ""#????????? ???? | | #####??#???# ## *#=[=[#? #??????????????? | | ##########?# ## !#!=%!#??####??????????????? | | #[!! ### ## #*==!#????????????????????? | | #[!! # ##########*!!|#????????????????????? | | #!! # ! ###??????????????????? | | # # ""#??????????????????? | | # + ""#??????????????????? | | # """ # T"#??????????????????? | | # """ # ""#??????????????????? | | # """ # """"" """"" ""#??????????????????? | | # # """"" """"" ###??????????????????? | | #?######## """"" """"" #????????????????????? | | ?????????# #????????????????????? | | ?????????# !%= #????????????????????? | | ???########+######+##########????????????????????? | | ???# =% #?????????????????????????????? | | ???# """"""" =%[ #?????????????????????????????? | | ???# """""" #?????????????????????????????? | | ???# " "" #?????????????????????????????? | +----------------------------------------------------+ Best States ------------- Heat Dissipation 67 Energy Generation 41 Energy Capacity 370 Matter Stores 300 Matter Capacity 300 Sight Range 16 Robot Scan Range 20 Terrain Scan Range 14 Terrain Scan Density 10 Corruption Block 14 Armor Coverage 150 Propulsion Shielding 66 Utility Shielding 90 Evasion (%) 57 Recoil Reduction 2 Particle Charging 30 Offensive Hacking 28 Defensive Hacking 16 Item Schematics ----------------- Combat Drone Bay | -7/Data Miner | Free Lgt. Regenerative Plating | -7/Data Miner | Free Cld. Cesium-ion Thruster | -7/Data Miner | Free Exp. Targeting Computer | -7/Data Miner | Free Gui. EMP Blaster | -7/Data Miner | Free Antigrav System | -7/Data Miner | Free Adv. Hacking Suite | -7/Data Miner | Free Mass Driver | -7/Data Miner | Free Imp. Remote Datajack | -7/Data Miner | Free Imp. Propulsion Shielding | -6/Factory | Scanalyzed Hacking Suite | -6/Factory | Scanalyzed Assault Drone Bay | -5/Zhirov | Free Exp. Heat Sink | -5/Zhirov | Free Exp. Optical Array | -5/Zhirov | Free Imp. Arc Thrower | -5/Zhirov | Free Imp. Plasma Cutter | -3/Testing | Scanalyzed Robot Schematics ------------------ G-50 Soldier | -7/Data Miner | Free Y-54 Guardian | -7/Data Miner | Free R-10 Processor | -7/Data Miner | Free C-17 Slicer | -7/Data Miner | Free B-48 Gladiator | -7/Data Miner | Free Y-64 Sentinel | -7/Data Miner | Free M-30 Cleanser | -3/Testing | Archive Fabricated ------------ H-66 Slayer | x2 | -6/Factory | Preloaded Centrium Leg | x1 | -4/Factory | Preloaded Alien Tech Used ----------------- Integrated Reactor Transdimensional Reconstructor Achievements -------------- Below My Command Is Your Wish Rampage Subspace Traveler Tester The Science Guy Challenges ------------ None Game ------ Seed CombatMasterShifter Manual? 0 Play Time 01:49:44 Cumulative 54.7 hours Start 2024.04.27 @ 16:43:39 End 2024.04.27 @ 21:37:06 Sessions 13 Manual Loads 0 Difficulty Rogue Special Mode None Game No. 53 Rogue 53 Adventurer 0 Explorer 0 Win Type - Total 1 Types 1/0/0/0/0/0/0/0/0 Lore% 46 Gallery% 51 Achievement% 41 Wizard Run 0 Options --------- Layout 0 ASCII 0 Keyboard 0 Movement Mouse Keybinds 0 Fullscreen 1 Font 18/Terminus Map View 76x50 Zoom Use 0% Tactical HUD 1 Map Filters NONE Filters NONE Steam 1 RUN: 1b5f9459-e3e9-4c2b-a593-5404547c6be6